{"text_format":"1","workbook":"xlsx","n_sheets":3,"sheets":["Ark1","Ark2","Ark3"],"not_rendered":{"charts":0,"images":0,"macros":1,"external_links":0,"defined_names":0,"comments":0,"pivot_tables":0},"unopened":[],"bounds":{"document_bytes":16777216,"sheet_cells":100000,"rows_first":2000,"rows_last":500,"rows_between":2000,"halvings":0,"cell_chars":16384,"cell_head_chars":4096},"cells_cut":0,"cells_raw":0,"read":"whole","date_system":"1900"}

{"sheet":"Ark1","index":0,"n_rows":84,"n_cols":10,"rows_kept":84,"cut":false,"hidden":false,"merged":[]}
["Indsæt data her",null,null,null,"Gentagelsesmønster","Kontaktpersoner",null,"Timer","I alt:",{"$f":"SUM(H:H)","v":0}]
[null,null,null,null,null,null,null,{"$f":"(D2-C2)*24","v":0}]
[null,null,null,null,null,null,null,{"$f":"(D3-C3)*24","v":0}]
[null,null,null,null,null,null,null,{"$f":"(D4-C4)*24","v":0}]
[null,null,null,null,null,null,null,{"$f":"(D5-C5)*24","v":0}]
[null,null,null,null,null,null,null,{"$f":"(D6-C6)*24","v":0}]
[null,null,null,null,null,null,null,{"$f":"(D7-C7)*24","v":0}]
[null,null,null,null,null,null,null,{"$f":"(D8-C8)*24","v":0}]
[null,null,null,null,null,null,null,{"$f":"(D9-C9)*24","v":0}]
[null,null,null,null,null,null,null,{"$f":"(D10-C10)*24","v":0}]
[null,null,null,null,null,null,null,{"$f":"(D11-C11)*24","v":0}]
[null,null,null,null,null,null,null,{"$f":"(D12-C12)*24","v":0}]
[null,null,null,null,null,null,null,{"$f":"(D13-C13)*24","v":0}]
[null,null,null,null,null,null,null,{"$f":"(D14-C14)*24","v":0}]
[null,null,null,null,null,null,null,{"$f":"(D15-C15)*24","v":0}]
[null,null,null,null,null,null,null,{"$f":"(D16-C16)*24","v":0}]
[null,null,null,null,null,null,null,{"$f":"(D17-C17)*24","v":0}]
[null,null,null,null,null,null,null,{"$f":"(D18-C18)*24","v":0}]
[null,null,null,null,null,null,null,{"$f":"(D19-C19)*24","v":0}]
[null,null,null,null,null,null,null,{"$f":"(D20-C20)*24","v":0}]
[null,null,null,null,null,null,null,{"$f":"(D21-C21)*24","v":0}]
[null,null,null,null,null,null,null,{"$f":"(D22-C22)*24","v":0}]
[null,null,null,null,null,null,null,{"$f":"(D23-C23)*24","v":0}]
[null,null,null,null,null,null,null,{"$f":"(D24-C24)*24","v":0}]
[null,null,null,null,null,null,null,{"$f":"(D25-C25)*24","v":0}]
[null,null,null,null,null,null,null,{"$f":"(D26-C26)*24","v":0}]
[null,null,null,null,null,null,null,{"$f":"(D27-C27)*24","v":0}]
[null,null,null,null,null,null,null,{"$f":"(D28-C28)*24","v":0}]
[null,null,null,null,null,null,null,{"$f":"(D29-C29)*24","v":0}]
[null,null,null,null,null,null,null,{"$f":"(D30-C30)*24","v":0}]
[null,null,null,null,null,null,null,{"$f":"(D31-C31)*24","v":0}]
[null,null,null,null,null,null,null,{"$f":"(D32-C32)*24","v":0}]
[null,null,null,null,null,null,null,{"$f":"(D33-C33)*24","v":0}]
[null,null,null,null,null,null,null,{"$f":"(D34-C34)*24","v":0}]
[null,null,null,null,null,null,null,{"$f":"(D35-C35)*24","v":0}]
[null,null,null,null,null,null,null,{"$f":"(D36-C36)*24","v":0}]
[null,null,null,null,null,null,null,{"$f":"(D37-C37)*24","v":0}]
[null,null,null,null,null,null,null,{"$f":"(D38-C38)*24","v":0}]
[null,null,null,null,null,null,null,{"$f":"(D39-C39)*24","v":0}]
[null,null,null,null,null,null,null,{"$f":"(D40-C40)*24","v":0}]
[null,null,null,null,null,null,null,{"$f":"(D41-C41)*24","v":0}]
[null,null,null,null,null,null,null,{"$f":"(D42-C42)*24","v":0}]
[null,null,null,null,null,null,null,{"$f":"(D43-C43)*24","v":0}]
[null,null,null,null,null,null,null,0]
[null,null,null,null,null,null,null,0]
[null,null,null,null,null,null,null,0]
[null,null,null,null,null,null,null,0]
[null,null,null,null,null,null,null,0]
[null,null,null,null,null,null,null,0]
[null,null,null,null,null,null,null,0]
[null,null,null,null,null,null,null,0]
[null,null,null,null,null,null,null,0]
[null,null,null,null,null,null,null,0]
[null,null,null,null,null,null,null,0]
[null,null,null,null,null,null,null,0]
[null,null,null,null,null,null,null,0]
[null,null,null,null,null,null,null,0]
[null,null,null,null,null,null,null,0]
[null,null,null,null,null,null,null,0]
[null,null,null,null,null,null,null,0]
[null,null,null,null,null,null,null,0]
[null,null,null,null,null,null,null,0]
[null,null,null,null,null,null,null,0]
[null,null,null,null,null,null,null,0]
[null,null,null,null,null,null,null,0]
[null,null,null,null,null,null,null,0]
[null,null,null,null,null,null,null,0]
[null,null,null,null,null,null,null,0]
[null,null,null,null,null,null,null,0]
[null,null,null,null,null,null,null,0]
[null,null,null,null,null,null,null,0]
[null,null,null,null,null,null,null,0]
[null,null,null,null,null,null,null,0]
[null,null,null,null,null,null,null,0]
[null,null,null,null,null,null,null,0]
[null,null,null,null,null,null,null,0]
[null,null,null,null,null,null,null,0]
[null,null,null,null,null,null,null,0]
[null,null,null,null,null,null,null,0]
[null,null,null,null,null,null,null,0]
[null,null,null,null,null,null,null,0]
[null,null,null,null,null,null,null,0]
[null,null,null,null,null,null,null,0]
[null,null,null,null,null,null,null,0]

{"sheet":"Ark2","index":1,"n_rows":0,"n_cols":0,"rows_kept":0,"cut":false,"hidden":false,"merged":[]}

{"sheet":"Ark3","index":2,"n_rows":0,"n_cols":0,"rows_kept":0,"cut":false,"hidden":false,"merged":[]}